bitfinex/quotes_BTCUSD_20241014
["timestamp","ask_amount","ask_price","bid_price","bid_amount"]
[1728936148189,0.40347325,65948.0,65947.0,0.50082532]
[1728936148373,0.31797269,65948.0,65947.0,0.50082532]
[1728936148600,0.30697269,65948.0,65947.0,0.50082532]
[1728936149043,0.30697278,65948.0,65947.0,0.50082532]
[1728936149268,0.26627598,65948.0,65947.0,0.50082532]
[1728936149737,0.30697339,65948.0,65947.0,0.50082532]
[1728936149963,0.29497339,65948.0,65947.0,0.50082532]
[1728936150173,0.29497498,65948.0,65947.0,0.50082532]
[1728936150402,0.29897498,65948.0,65947.0,0.50082532]
[1728936150630,0.29897623,65948.0,65947.0,0.50082532]
[1728936150855,0.26475604,65948.0,65947.0,0.50082532]
[1728936151091,0.29697757,65948.0,65947.0,0.50082532]
[1728936151311,0.27936756,65948.0,65947.0,0.50082532]
[1728936151523,0.29698031,65948.0,65947.0,0.50082532]
[1728936151762,0.29898031,65948.0,65947.0,0.50082532]
[1728936152956,0.24145109,65948.0,65947.0,0.50082532]
[1728936153181,0.24145141,65948.0,65947.0,0.50082532]
[1728936154226,0.21883866,65948.0,65947.0,0.50082532]
[1728936154673,0.37047266,65948.0,65947.0,0.50082532]
[1728936154895,0.34220827,65948.0,65947.0,0.50082532]
[1728936155117,0.37045492,65948.0,65947.0,0.50082532]
[1728936155344,0.21882092,65948.0,65947.0,0.50082532]
[1728936155568,0.37045492,65948.0,65947.0,0.50082532]
[1728936156060,0.21882092,65948.0,65947.0,0.50082532]
[1728936156515,0.37045492,65948.0,65947.0,0.50082532]
[1728936157222,0.58260908,65948.0,65947.0,0.50082532]
[1728936157451,0.11049975,65948.0,65947.0,0.65246132]
[1728936157688,0.11049975,65948.0,65947.0,0.50082532]
[1728936157689,0.04693978,65948.0,65947.0,0.50082532]
[1728936157899,0.04693978,65948.0,65947.0,0.65246132]
[1728936158131,0.09216994,65948.0,65947.0,0.65246132]
[1728936158348,0.04693978,65948.0,65947.0,0.50082532]
[1728936158548,0.0881712,65948.0,65947.0,0.50082532]
[1728936158761,0.0861712,65948.0,65947.0,0.50082532]
[1728936159039,0.04661231,65948.0,65947.0,0.50082532]
[1728936159231,0.08617177,65948.0,65947.0,0.50082532]
[1728936159517,0.08617177,65948.0,65947.0,0.65246132]
[1728936159749,0.0419407,65948.0,65947.0,0.75006132]
[1728936160202,0.0419407,65948.0,65947.0,0.75206132]
[1728936160425,0.0409407,65948.0,65947.0,0.60042532]
[1728936160641,0.0409407,65948.0,65947.0,0.75206132]
[1728936161580,0.0409407,65948.0,65947.0,0.60042532]
[1728936161806,0.0409407,65948.0,65947.0,0.75206132]
[1728936162042,0.02681232,65948.0,65947.0,0.75206132]
[1728936162275,0.01268394,65948.0,65947.0,0.75206132]
[1728936162503,0.02681066,65948.0,65947.0,0.75206132]
[1728936162996,0.01550788,65948.0,65947.0,0.75206132]
[1728936163204,0.01268255,65948.0,65947.0,0.75206132]
[1728936165949,0.00138124,65948.0,65947.0,0.75206132]
[1728936166933,0.00138124,65948.0,65947.0,0.82966132]
[1728936167122,0.00138124,65948.0,65947.0,0.67802532]
[1728936167326,0.00138124,65948.0,65947.0,0.82966132]
[1728936168927,0.00138124,65948.0,65947.0,0.67802532]
[1728936170668,0.01267881,65948.0,65947.0,0.67802532]
[1728936170969,0.00138124,65948.0,65947.0,0.67802532]
[1728936171176,0.01267879,65948.0,65947.0,0.67802532]
[1728936172515,0.01267879,65948.0,65947.0,0.82966132]
[1728936173205,0.04294693,65948.0,65947.0,0.82966132]
[1728936173413,0.04294693,65948.0,65947.0,0.82766132]
[1728936173626,0.04294693,65948.0,65947.0,0.82866132]
[1728936174264,0.04295317,65948.0,65947.0,0.82866132]
[1728936174890,0.04295317,65948.0,65947.0,0.82766132]
[1728936175157,0.04295906,65948.0,65947.0,0.82766132]
[1728936175363,0.04295906,65948.0,65947.0,0.82866132]
[1728936175800,0.04095906,65948.0,65947.0,0.67702532]
[1728936176220,0.0837446,65948.0,65947.0,0.67702532]
[1728936177073,0.05908597,65948.0,65947.0,0.67602532]
[1728936177284,0.08374511,65948.0,65947.0,0.67702532]
[1728936178218,0.08374511,65948.0,65947.0,0.82866132]
[1728936178985,0.02150815,65948.0,65947.0,0.82866132]
[1728936179162,0.0838256,65948.0,65947.0,0.67702532]
[1728936179386,0.08382841,65948.0,65947.0,0.67702532]
[1728936180089,0.23546241,65948.0,65947.0,0.67702532]
[1728936181792,0.15501524,65948.0,65947.0,0.67702532]
[1728936181928,0.23547181,65948.0,65947.0,0.67702532]
[1728936182140,0.25813567,65948.0,65947.0,0.67702532]
[1728936182388,0.23547181,65948.0,65947.0,0.67702532]
[1728936183351,0.25813876,65948.0,65947.0,0.67702532]
[1728936183823,0.10650476,65948.0,65947.0,0.67702532]
[1728936184038,0.25813876,65948.0,65947.0,0.67702532]
[1728936184522,0.10650476,65948.0,65947.0,0.67702532]
[1728936185019,0.25813876,65948.0,65947.0,0.67702532]
[1728936185225,0.25813876,65948.0,65947.0,0.57942532]
[1728936185449,0.41166723,65948.0,65947.0,0.57942532]
[1728936185611,0.33800668,65948.0,65947.0,0.57942532]
[1728936185860,0.41168912,65948.0,65947.0,0.57942532]
[1728936186010,0.41928072,65948.0,65947.0,0.57942532]
[1728936187445,0.46450836,65948.0,65947.0,0.57942532]
[1728936187684,0.41928072,65948.0,65947.0,0.57942532]
[1728936187926,0.41874228,65948.0,65947.0,0.57942532]
[1728936188832,0.41115068,65948.0,65947.0,0.57942532]
[1728936189977,0.3448343,65948.0,65947.0,0.57942532]
[1728936190375,0.3374685,65948.0,65947.0,0.57942532]
[1728936190466,0.45633757,65948.0,65947.0,0.57942532]
[1728936190710,0.41112598,65948.0,65947.0,0.57942532]
[1728936192122,0.67630177,65948.0,65947.0,0.57942532]
[1728936192332,0.58578484,65948.0,65947.0,0.57942532]
[1728936193474,0.59527456,65948.0,65947.0,0.57942532]
[1728936194802,0.59527456,65948.0,65947.0,0.50182532]
[1728936196284,0.58578484,65948.0,65947.0,0.50182532]
[1728936196934,0.59527458,65948.0,65947.0,0.50182532]
[1728936197156,0.58578484,65948.0,65947.0,0.50182532]
[1728936197875,0.59527467,65948.0,65947.0,0.50182532]
[1728936198305,0.58578484,65948.0,65947.0,0.50182532]
[1728936198544,0.59527466,65948.0,65947.0,0.50182532]
[1728936200609,0.44364066,65948.0,65947.0,0.50182532]
[1728936200836,0.58578484,65948.0,65947.0,0.50182532]
[1728936201073,0.59527466,65948.0,65947.0,0.50182532]
[1728936201980,0.59526387,65948.0,65947.0,0.50182532]
[1728936202208,0.5954563,65948.0,65947.0,0.50182532]
[1728936202438,0.29029383,65948.0,65947.0,0.65346132]
[1728936202664,0.29029383,65948.0,65947.0,0.94085303]
[1728936202665,0.27321226,65948.0,65947.0,0.94085303]
[1728936202876,0.1104769,65948.0,65947.0,0.94085303]
[1728936203112,0.04250046,65948.0,65947.0,1.17825841]
[1728936203329,0.01707962,65956.0,65947.0,1.17825841]
[1728936203330,0.04531868,65955.0,65954.0,0.00492]
[1728936203575,0.04531868,65955.0,65954.0,0.0778]
[1728936203781,0.06797644,65955.0,65954.0,0.0778]
[1728936204498,0.09062221,65955.0,65954.0,0.0778]
[1728936205107,0.02364577,65955.0,65954.0,0.22942]
[1728936205323,0.001,65955.0,65954.0,0.5778]
[1728936205570,0.001,65955.0,65954.0,0.5798]
[1728936205787,0.001,65955.0,65954.0,0.5778]
[1728936206005,0.001,65955.0,65954.0,0.5798]
[1728936206224,0.001,65955.0,65954.0,0.73142]
[1728936207847,0.00073179,65955.0,65954.0,0.5798]
[1728936208999,0.06870823,65955.0,65954.0,0.5798]
[1728936209200,0.00073179,65955.0,65954.0,0.5798]
[1728936209445,0.06870823,65955.0,65954.0,0.5798]
[1728936209648,0.00073179,65955.0,65954.0,0.5798]
[1728936210519,0.06870823,65955.0,65954.0,0.5798]
[1728936210773,0.00073179,65955.0,65954.0,0.5798]
[1728936211000,0.04858922,65956.0,65954.0,0.5798]
[1728936211672,0.16714522,65958.0,65954.0,0.5798]
[1728936211673,0.09063392,65959.0,65954.0,0.5798]
[1728936211890,0.00165,65955.0,65954.0,0.5798]
[1728936212092,0.00165,65955.0,65954.0,0.5778]
[1728936212308,0.04692484,65955.0,65954.0,0.5778]
[1728936212522,0.00165,65955.0,65954.0,0.5788]
[1728936212746,0.00165,65955.0,65954.0,0.5778]
[1728936213226,0.00165,65955.0,65954.0,0.5798]
[1728936213417,0.0242758,65955.0,65954.0,0.5798]
[1728936213611,0.02427572,65955.0,65954.0,0.5798]
[1728936213863,0.02527572,65955.0,65954.0,0.5798]
[1728936215272,0.06486929,65955.0,65954.0,0.5798]
[1728936215716,0.0875127,65955.0,65954.0,0.5798]
[1728936215934,0.04224357,65955.0,65954.0,0.5798]
[1728936216159,0.11013949,65955.0,65954.0,0.5798]
[1728936216371,0.08751407,65955.0,65954.0,0.5798]
[1728936216589,0.04224357,65955.0,65954.0,0.5798]
[1728936218006,0.04170591,65955.0,65954.0,0.5798]
[1728936218236,0.0869902,65955.0,65954.0,0.5798]
[1728936219923,0.36985238,65955.0,65954.0,0.5798]
[1728936220157,0.36985238,65955.0,65954.0,0.502]
[1728936220158,0.71368544,65955.0,65954.0,0.502]
[1728936220394,0.61747541,65955.0,65954.0,0.502]
[1728936220655,0.76121479,65955.0,65954.0,0.502]
[1728936220880,0.62528773,65955.0,65954.0,0.502]
[1728936221105,0.72528773,65955.0,65954.0,0.46783364]
[1728936221344,0.74885439,65955.0,65954.0,0.46783364]
[1728936221572,0.74885439,65955.0,65954.0,0.46583364]
[1728936221803,0.75785439,65955.0,65954.0,0.46583364]
[1728936222024,0.74885439,65955.0,65954.0,0.46583364]
[1728936222309,0.74785439,65955.0,65954.0,0.49999964]
[1728936222542,0.77785439,65955.0,65954.0,0.49999964]
[1728936222772,0.76385439,65955.0,65954.0,0.49999964]
[1728936222993,0.76685439,65955.0,65954.0,0.49999964]
[1728936223468,0.79592682,65955.0,65954.0,0.49999964]
[1728936223934,0.78192682,65955.0,65954.0,0.49999964]
[1728936224179,0.79592682,65955.0,65954.0,0.49999964]
[1728936224401,0.77236016,65955.0,65954.0,0.50082464]
[1728936224629,0.75836016,65955.0,65954.0,0.50082464]
[1728936225111,0.77236016,65955.0,65954.0,0.50082464]
[1728936225337,0.74436016,65955.0,65954.0,0.50082464]
[1728936225583,0.75836016,65955.0,65954.0,0.50082464]
[1728936225797,0.77236016,65955.0,65954.0,0.50082464]
[1728936226033,0.60519374,65955.0,65954.0,0.50082464]
[1728936226227,0.77214307,65955.0,65954.0,0.50082464]
[1728936226481,0.75707064,65955.0,65954.0,0.50082464]
[1728936227819,0.75653314,65955.0,65954.0,0.50082464]
[1728936228351,0.85510776,65955.0,65954.0,0.50082464]
[1728936228517,0.89207228,65955.0,65954.0,0.50082464]
[1728936231085,0.75638682,65955.0,65954.0,0.50082464]
[1728936231280,0.7799191,65955.0,65954.0,0.50082464]
[1728936232257,0.77041605,65955.0,65954.0,0.50082464]
[1728936232498,0.77990702,65955.0,65954.0,0.50082464]
[1728936233143,0.77988426,65955.0,65954.0,0.50082464]
[1728936235406,0.77988426,65955.0,65954.0,0.000825]
[1728936235623,0.151634,65948.0,65947.0,0.00027962]
[1728936235878,0.43100081,65948.0,65947.0,0.00027962]
[1728936236133,0.53177,65948.0,65947.0,0.00027962]
[1728936236325,0.60541656,65948.0,65947.0,0.00027962]
[1728936236541,0.60541761,65948.0,65947.0,0.00027962]
[1728936237432,0.61490859,65948.0,65947.0,0.00027962]
[1728936237903,0.61437109,65948.0,65947.0,0.00027962]
[1728936238334,0.72732858,65948.0,65947.0,0.00027962]
[1728936238555,0.74132858,65948.0,65947.0,0.00027962]
[1728936238772,0.75332858,65948.0,65947.0,0.00027962]
[1728936239902,0.6704431,65948.0,65947.0,0.00027962]
[1728936240117,0.75333731,65948.0,65947.0,0.00027962]
[1728936240571,0.75314849,65948.0,65947.0,0.00027962]
[1728936242691,0.67950337,65948.0,65947.0,0.00027962]
[1728936242890,0.75317049,65948.0,65947.0,0.00027962]
[1728936246504,0.63330441,65948.0,65947.0,0.00027962]
[1728936246856,0.91221264,65948.0,65947.0,0.00027962]
[1728936246981,0.251648,65942.0,65941.0,0.001326]
[1728936247233,0.59492541,65942.0,65941.0,0.001326]
[1728936247474,0.71488568,65942.0,65941.0,0.001326]
[1728936247708,0.54813674,65942.0,65941.0,0.001326]
[1728936247904,0.71450593,65942.0,65941.0,0.001326]
[1728936248843,0.72051286,65942.0,65941.0,0.001326]
[1728936249771,0.72851286,65942.0,65941.0,0.001326]
[1728936250472,0.7285997,65942.0,65941.0,0.001326]
[1728936250704,0.151664,65935.0,65931.0,0.1698]
[1728936250944,0.43115979,65935.0,65931.0,0.1698]
[1728936251169,0.44824651,65935.0,65931.0,0.1698]
[1728936252288,0.44824651,65935.0,65934.0,0.002827]
[1728936252751,0.43875389,65935.0,65934.0,0.002827]
[1728936253211,0.4482465,65935.0,65934.0,0.002827]
[1728936253414,0.44824663,65935.0,65934.0,0.002827]
[1728936253629,0.44924663,65935.0,65934.0,0.002827]
[1728936254334,0.44920782,65935.0,65934.0,0.002827]
[1728936254763,0.43971511,65935.0,65934.0,0.002827]
[1728936254982,0.43212094,65935.0,65934.0,0.002827]
[1728936255196,0.44920489,65935.0,65934.0,0.002827]
[1728936255412,0.43211798,65935.0,65934.0,0.002827]
[1728936255874,0.44920487,65935.0,65934.0,0.002827]
[1728936256092,0.43211798,65935.0,65934.0,0.002827]
[1728936256307,0.44920487,65935.0,65934.0,0.002827]
[1728936257429,0.43211798,65935.0,65934.0,0.002827]
[1728936257648,0.44920487,65935.0,65934.0,0.002827]
[1728936258340,0.51689433,65935.0,65934.0,0.002827]
[1728936258564,0.61687589,65935.0,65934.0,0.002827]
[1728936260348,0.54918643,65935.0,65934.0,0.002827]
[1728936260591,0.73082012,65935.0,65934.0,0.002827]
[1728936260812,0.151689,65924.0,65923.0,0.000825]
[1728936261099,0.59779492,65924.0,65923.0,0.000825]
[1728936261315,0.70518871,65924.0,65923.0,0.000825]
[1728936261529,0.70517945,65924.0,65923.0,0.000825]
[1728936261823,0.63141224,65924.0,65923.0,0.000825]
[1728936261972,0.70511393,65924.0,65923.0,0.000825]
[1728936262215,0.61580739,65924.0,65923.0,0.002825]
[1728936262433,0.70611393,65924.0,65923.0,0.002825]
[1728936262649,0.70511393,65924.0,65923.0,0.000825]
[1728936262872,0.71110667,65924.0,65923.0,0.000825]
[1728936263099,0.70510667,65924.0,65923.0,0.000825]
[1728936263321,0.70511859,65924.0,65923.0,0.000825]
[1728936263550,0.71111859,65924.0,65923.0,0.000825]
[1728936264018,0.71111859,65924.0,65923.0,0.094025]
[1728936264019,0.48220918,65924.0,65923.0,0.094025]
[1728936264236,0.49020918,65924.0,65923.0,0.094025]
[1728936264479,0.51278608,65924.0,65923.0,0.094025]
[1728936265158,0.44504997,65924.0,65923.0,0.094025]
[1728936265390,0.16201054,65924.0,65923.0,0.321817]
[1728936265628,0.05353944,65924.0,65923.0,0.43498871]
[1728936265833,0.014,65924.0,65923.0,0.321817]
[1728936266120,0.014,65924.0,65923.0,0.49877928]
[1728936266309,0.06325633,65931.0,65923.0,0.17778728]
[1728936266310,0.01807372,65930.0,65923.0,0.17778728]
[1728936266536,0.19306326,65929.0,65928.0,0.1693]
[1728936267170,0.2111354,65929.0,65928.0,0.1693]
[1728936267616,0.25631344,65929.0,65928.0,0.1693]
[1728936267825,0.2111354,65929.0,65928.0,0.6693]
[1728936268527,0.19306326,65929.0,65928.0,0.6693]
[1728936268809,0.21114107,65929.0,65928.0,0.6693]
[1728936269280,0.3628229,65929.0,65928.0,0.6693]
[1728936269738,0.3648229,65929.0,65928.0,0.6693]
[1728936270429,0.38742448,65929.0,65928.0,0.6693]
[1728936270921,0.45520421,65929.0,65928.0,0.6693]
[1728936271152,0.38742448,65929.0,65928.0,0.6693]
[1728936271408,0.45520483,65929.0,65928.0,0.6693]
[1728936271642,0.43302679,65929.0,65928.0,0.6693]
[1728936271877,0.44062109,65929.0,65928.0,0.6693]
[1728936272136,0.69772573,65929.0,65928.0,0.6693]
[1728936272571,0.69772573,65929.0,65928.0,0.670125]
[1728936272787,0.69779408,65929.0,65928.0,0.670125]
[1728936273238,0.60746514,65929.0,65928.0,0.670125]
[1728936273456,0.61695874,65929.0,65928.0,0.670125]
[1728936273686,0.70734768,65929.0,65928.0,0.670125]
[1728936274610,0.69785408,65929.0,65928.0,0.670125]
[1728936274836,0.616967,65929.0,65928.0,0.670125]
[1728936275333,0.70736393,65929.0,65928.0,0.670125]
[1728936275579,0.72992693,65929.0,65928.0,0.670125]
[1728936276088,0.616967,65929.0,65928.0,0.670125]
[1728936276623,0.73001484,65929.0,65928.0,0.576925]
[1728936276839,0.61704648,65929.0,65928.0,0.576925]
[1728936277149,0.63218302,65929.0,65928.0,0.576925]
[1728936277547,0.63218126,65929.0,65928.0,0.576925]
[1728936278042,0.73008877,65929.0,65928.0,0.576925]
[1728936278483,0.70749486,65929.0,65928.0,0.576925]
[1728936278934,0.61709018,65929.0,65928.0,0.576925]
[1728936279158,0.70749626,65929.0,65928.0,0.576925]
[1728936279373,0.61709018,65929.0,65928.0,0.576925]
[1728936279596,0.73008877,65929.0,65928.0,0.576925]
[1728936279819,0.61709018,65929.0,65928.0,0.576925]
[1728936280282,0.73008877,65929.0,65928.0,0.576925]
[1728936280997,0.73009045,65929.0,65928.0,0.576925]
[1728936281232,0.59409186,65929.0,65928.0,0.576925]
[1728936281482,0.63223041,65929.0,65928.0,0.576925]
[1728936281979,0.61713894,65929.0,65928.0,0.576925]
[1728936282442,0.61719278,65929.0,65928.0,0.576925]
[1728936282694,0.73022941,65929.0,65928.0,0.576925]
[1728936282928,0.61719278,65929.0,65928.0,0.576925]
[1728936284799,0.71719278,65929.0,65928.0,0.46664662]
[1728936285281,0.71716981,65929.0,65928.0,0.46664662]
[1728936285869,0.72279217,65929.0,65928.0,0.50082462]
[1728936286166,0.85834132,65929.0,65928.0,0.50082462]
[1728936286719,0.86634132,65929.0,65928.0,0.50082462]
[1728936287170,0.7306807,65929.0,65928.0,0.50082462]
[1728936287391,0.7356807,65929.0,65928.0,0.50082462]
[1728936287659,0.7416807,65929.0,65928.0,0.50082462]
[1728936288095,0.7356807,65929.0,65928.0,0.50082462]
[1728936288322,0.7436807,65929.0,65928.0,0.50082462]
[1728936288573,0.7276807,65929.0,65928.0,0.50082462]
[1728936288818,0.7366807,65929.0,65928.0,0.50082462]
[1728936289035,0.7456807,65929.0,65928.0,0.50082462]
[1728936289260,0.7366807,65929.0,65928.0,0.50082462]
[1728936289488,0.7576807,65929.0,65928.0,0.50082462]
[1728936289730,0.80676735,65929.0,65928.0,0.50082462]
[1728936289969,0.80676735,65929.0,65928.0,0.000825]
[1728936290218,0.005,65925.0,65914.0,0.080326]
[1728936290453,0.17471,65915.0,65914.0,0.080326]
[1728936290695,0.46156187,65915.0,65914.0,0.080326]
[1728936291427,0.46156187,65915.0,65914.0,0.000826]
[1728936291623,0.57450673,65915.0,65914.0,0.000826]
[1728936291842,0.57449362,65915.0,65914.0,0.000826]
[1728936292316,0.46154723,65915.0,65914.0,0.000826]
[1728936292541,0.57449706,65915.0,65914.0,0.000826]
[1728936292763,0.47054723,65915.0,65914.0,0.000826]
[1728936293264,0.57447944,65915.0,65914.0,0.000826]
[1728936293476,0.58647944,65915.0,65914.0,0.000826]
[1728936293715,0.58747944,65915.0,65914.0,0.002826]
[1728936293945,0.47354723,65915.0,65914.0,0.000826]
[1728936294185,0.59746083,65915.0,65914.0,0.000826]
[1728936294416,0.47354723,65915.0,65914.0,0.000826]
[1728936294645,0.56654723,65915.0,65914.0,0.000826]
[1728936294855,0.57854723,65915.0,65914.0,0.000826]
[1728936295073,0.59154723,65915.0,65914.0,0.000826]
[1728936295551,0.60205298,65915.0,65914.0,0.000826]
[1728936295768,0.57854723,65915.0,65914.0,0.000826]
[1728936296022,0.59254723,65915.0,65914.0,0.000826]
[1728936296893,0.7460757,65915.0,65914.0,0.000826]
[1728936299636,0.73658208,65915.0,65914.0,0.000826]
[1728936299860,0.74585381,65915.0,65914.0,0.000826]
[1728936301033,0.74085381,65915.0,65914.0,0.000826]
[1728936301254,0.74085318,65915.0,65914.0,0.079526]
[1728936301468,0.82162799,65915.0,65914.0,0.079526]
[1728936301689,0.73135768,65915.0,65914.0,0.079526]
[1728936301914,0.71735768,65915.0,65914.0,0.079526]
[1728936302384,0.72935768,65915.0,65914.0,0.079526]
[1728936302632,0.73887111,65915.0,65914.0,0.079526]
[1728936303093,0.80764926,65915.0,65914.0,0.079526]
[1728936303319,0.72687109,65915.0,65914.0,0.079526]
[1728936303537,0.81765285,65915.0,65914.0,0.079526]
[1728936303762,0.72737554,65915.0,65914.0,0.079526]
[1728936304001,0.73687107,65915.0,65914.0,0.079526]
[1728936304250,0.46216104,65915.0,65914.0,0.079526]
[1728936304485,0.44492697,65915.0,65914.0,0.175926]
[1728936304701,0.34601243,65915.0,65914.0,0.175926]
[1728936304948,0.34601243,65915.0,65914.0,0.50460028]
[1728936304949,0.12476776,65915.0,65914.0,0.50460028]
[1728936305167,0.04952606,65915.0,65914.0,0.50460028]
[1728936305407,0.04241932,65915.0,65914.0,0.50460028]
[1728936305638,0.0282799,65915.0,65914.0,0.50460028]
[1728936305881,0.017,65915.0,65914.0,0.50460028]
[1728936306110,0.02829764,65915.0,65914.0,0.50460028]
[1728936306345,0.007,65915.0,65914.0,0.50460028]
[1728936306582,0.012,65915.0,65914.0,0.50460028]
[1728936306806,0.01807786,65921.0,65914.0,0.17778828]
[1728936307046,0.03954571,65920.0,65919.0,0.2455]
[1728936307287,0.03954571,65920.0,65919.0,0.1742]
[1728936307555,0.4080445,65920.0,65919.0,0.1742]
[1728936307787,0.4080445,65920.0,65919.0,0.6742]
[1728936307788,0.40800747,65920.0,65919.0,0.6742]
[1728936308021,0.40804404,65920.0,65919.0,0.6742]
[1728936308747,0.43104404,65920.0,65919.0,0.6742]
[1728936308985,0.49880578,65920.0,65919.0,0.6742]
[1728936309223,0.50639837,65920.0,65919.0,0.6742]
[1728936309707,0.40193249,65920.0,65919.0,0.6742]
[1728936309939,0.43865994,65920.0,65919.0,0.6742]
[1728936310179,0.50841862,65920.0,65919.0,0.6742]
[1728936310428,0.60740698,65920.0,65919.0,0.6742]
[1728936310624,0.70725528,65920.0,65919.0,0.6742]
[1728936311361,0.70725528,65920.0,65919.0,0.5804]
[1728936312089,0.70725528,65920.0,65919.0,0.46581609]
[1728936312090,0.72190158,65920.0,65919.0,0.46581609]
[1728936312338,0.73696998,65920.0,65919.0,0.46581609]
[1728936312582,0.74544687,65920.0,65919.0,0.46581609]
[1728936312814,0.74744687,65920.0,65919.0,0.46581609]
[1728936313015,0.74344687,65920.0,65919.0,0.46581609]
[1728936313311,0.71971943,65920.0,65919.0,0.49999909]
[1728936313602,0.7439023,65920.0,65919.0,0.49999909]
[1728936313847,0.73890604,65920.0,65919.0,0.57939909]
[1728936314081,0.85179266,65920.0,65919.0,0.57939909]
[1728936314317,0.85174471,65920.0,65919.0,0.57939909]
[1728936314973,0.85174471,65920.0,65919.0,0.0794]
[1728936316193,0.85174471,65920.0,65919.0,0.0694]
[1728936316194,0.82916171,65920.0,65919.0,0.0694]
[1728936316428,0.17199798,65920.0,65919.0,0.314001]
[1728936316662,0.12684039,65920.0,65919.0,0.314001]
[1728936317125,0.1028468,65920.0,65919.0,0.1623]
[1728936317616,0.1138468,65920.0,65919.0,0.1623]
[1728936317850,0.1028468,65920.0,65919.0,0.1623]
[1728936318087,0.1168468,65920.0,65919.0,0.1623]
[1728936318574,0.1168468,65920.0,65919.0,0.314001]
[1728936318813,0.07163766,65920.0,65919.0,0.814001]
[1728936319273,0.04055646,65920.0,65919.0,0.814001]
[1728936319504,0.04355646,65920.0,65919.0,0.814001]
[1728936319735,0.04355646,65920.0,65919.0,0.6623]
[1728936320014,0.03955646,65920.0,65919.0,0.814001]
[1728936320244,0.02542778,65920.0,65919.0,0.818921]
[1728936320484,0.002,65920.0,65919.0,0.818921]
[1728936320961,0.00165,65921.0,65920.0,0.322019]
[1728936322854,0.00165,65921.0,65920.0,0.72638666]
[1728936323068,0.00165,65921.0,65920.0,0.49898128]
[1728936323512,0.00365,65921.0,65920.0,0.50398128]
[1728936326567,0.00365,65921.0,65920.0,0.1704]
[1728936327028,0.00365,65921.0,65920.0,0.322099]
[1728936327262,0.00365,65921.0,65920.0,0.1704]
[1728936327452,0.00265,65921.0,65920.0,0.1694]
[1728936327671,0.00265,65921.0,65920.0,0.321099]
[1728936327875,0.00165,65921.0,65920.0,0.317099]
[1728936328205,0.00165,65921.0,65920.0,0.1654]
[1728936328761,0.00265,65921.0,65920.0,0.1664]
[1728936329182,0.00165,65921.0,65920.0,0.1654]
[1728936329407,0.00265,65921.0,65920.0,0.321099]
[1728936329670,0.00165,65921.0,65920.0,0.317099]
[1728936329881,0.00265,65921.0,65920.0,0.321099]
[1728936330125,0.00265,65921.0,65920.0,0.322099]
[1728936330350,0.00165,65921.0,65920.0,0.318099]
[1728936330563,0.00165,65921.0,65920.0,0.320099]
[1728936330996,0.00165,65921.0,65920.0,0.1684]
[1728936331468,0.153346,65921.0,65920.0,0.1684]
[1728936331709,0.47777259,65921.0,65920.0,0.003]
[1728936331907,0.68791128,65921.0,65920.0,0.004]
[1728936332117,0.7115175,65921.0,65920.0,0.004]
[1728936332352,0.7115175,65921.0,65920.0,0.001]
[1728936332562,0.151699,65920.0,65919.0,0.500825]
[1728936332855,0.44342028,65920.0,65919.0,0.500825]
[1728936333296,0.70981429,65920.0,65919.0,0.500825]
[1728936333557,0.61953734,65920.0,65919.0,0.500825]
[1728936333771,0.63953734,65920.0,65919.0,0.500825]
[1728936333998,0.52354476,65920.0,65919.0,0.500825]
[1728936334221,0.45583144,65920.0,65919.0,0.500825]
[1728936335530,0.50097436,65920.0,65919.0,0.500825]
[1728936335752,0.50097293,65920.0,65919.0,0.500825]
[1728936336202,0.50096724,65920.0,65919.0,0.500825]
[1728936336691,0.52353907,65920.0,65919.0,0.500825]
[1728936336900,0.53110976,65920.0,65919.0,0.500825]
[1728936337118,0.46342149,65920.0,65919.0,0.500825]
[1728936337586,0.62999441,65920.0,65919.0,0.500825]
[1728936337808,0.46342149,65920.0,65919.0,0.500825]
[1728936338257,0.52351603,65920.0,65919.0,0.500825]
[1728936338474,0.53111168,65920.0,65919.0,0.500825]
[1728936339203,0.52351603,65920.0,65919.0,0.500825]
[1728936339432,0.52352094,65920.0,65919.0,0.500825]
[1728936339646,0.45582575,65920.0,65919.0,0.500825]
[1728936340514,0.52352094,65920.0,65919.0,0.500825]
[1728936340973,0.75452514,65920.0,65919.0,0.500825]
[1728936341193,0.74447221,65920.0,65919.0,0.46663993]
[1728936342276,0.74447221,65920.0,65919.0,0.50082493]
[1728936342728,0.75447221,65920.0,65919.0,0.50082493]
[1728936343222,0.7930157,65920.0,65919.0,0.50082493]
[1728936343455,0.79296324,65920.0,65919.0,0.50082493]
[1728936343913,0.80075921,65920.0,65919.0,0.50082493]
[1728936344316,0.76221752,65920.0,65919.0,0.50082493]
[1728936347064,0.76421752,65920.0,65919.0,0.50082493]
[1728936347283,0.76221752,65920.0,65919.0,0.50082493]
[1728936347512,0.76221614,65920.0,65919.0,0.50082493]
[1728936347995,0.76220275,65920.0,65919.0,0.50082493]
[1728936348453,0.75720275,65920.0,65919.0,0.50082493]
[1728936348920,0.75720275,65920.0,65919.0,0.000825]
[1728936349151,0.15171,65915.0,65914.0,0.000826]
[1728936349370,0.69745992,65915.0,65914.0,0.000826]
[1728936349616,0.70991413,65915.0,65914.0,0.000826]
[1728936350482,0.71391413,65915.0,65914.0,0.000826]
[1728936351119,0.71991413,65915.0,65914.0,0.000826]
[1728936351369,0.65577724,65915.0,65914.0,0.000826]
[1728936351568,0.76621308,65915.0,65914.0,0.000826]
[1728936353872,0.72931094,65915.0,65914.0,0.000826]
[1728936355537,0.69242638,65915.0,65914.0,0.000826]
[1728936355642,0.72934254,65915.0,65914.0,0.000826]
[1728936356316,0.75283555,65915.0,65914.0,0.000826]
[1728936357224,0.58628174,65915.0,65914.0,0.000826]
[1728936357444,0.86546324,65915.0,65914.0,0.000826]
[1728936358436,0.84197023,65915.0,65914.0,0.000826]
[1728936358766,0.86547896,65915.0,65914.0,0.000826]
[1728936358986,0.86547896,65915.0,65914.0,0.095726]
[1728936359205,0.8194269,65915.0,65914.0,0.06154007]
[1728936359432,0.69973393,65915.0,65914.0,0.06154007]
[1728936359664,0.56290601,65915.0,65914.0,0.06154007]
[1728936359962,0.59386129,65915.0,65914.0,0.06154007]
[1728936360125,0.1,65914.0,65912.0,0.0823]
[1728936360345,0.1,65914.0,65910.0,0.000826]
[1728936360346,0.274719,65911.0,65910.0,0.000826]
[1728936360567,0.85074267,65911.0,65910.0,0.000826]
[1728936360805,0.83208579,65911.0,65910.0,0.000826]
[1728936361262,0.85557697,65911.0,65910.0,0.000826]
[1728936362163,0.85757697,65911.0,65910.0,0.000826]